[Event "Kadrioru MK Open A"]
[Site "Tallinn, Paul Keres Chess House, Estonia"]
[Date "2023.02.10"]
[Round "1.5"]
[White "Petrov, Dmitri"]
[Black "Sepandi, Jaak"]
[Result "1-0"]
[TimeControl "90 minutes with 30 second increment from move 1"]
[WhiteElo "2246"]
[BlackElo "1479"]

1. e4 {

[%clk 01:30:51]

} {

[%emt 00:00:10]

} e6 {

[%clk 01:30:47]

} {

[%emt 00:00:09]

} 2. d4 {

[%clk 01:31:06]

} {

[%emt 00:00:21]

} d5 {

[%clk 01:31:07]

} {

[%emt 00:00:10]

} 3. Nd2 {

[%clk 01:31:13]

} {

[%emt 00:00:23]

} dxe4 {

[%clk 01:31:11]

} {

[%emt 00:00:27]

} 4. Nxe4 {

[%clk 01:31:36]

} {

[%emt 00:00:07]

} Nd7 {

[%clk 01:31:25]

} {

[%emt 00:00:17]

} 5. Bd3 {

[%clk 01:31:14]

} {

[%emt 00:00:50]

} Ngf6 {

[%clk 01:31:23]

} {

[%emt 00:00:33]

} 6. Nf3 {

[%clk 01:31:10]

} {

[%emt 00:00:35]

} c5 {

[%clk 01:30:10]

} {

[%emt 00:01:43]

} 7. O-O {

[%clk 01:28:13]

} {

[%emt 00:03:27]

} Nxe4 {

[%clk 01:26:31]

} {

[%emt 00:04:09]

} 8. Bxe4 {

[%clk 01:28:31]

} {

[%emt 00:00:11]

} Nf6 {

[%clk 01:26:44]

} {

[%emt 00:00:18]

} 9. Bg5 {

[%clk 01:26:42]

} {

[%emt 00:02:19]

} h6 {

[%clk 01:24:51]

} {

[%emt 00:02:23]

} 10. Bxf6 {

[%clk 01:26:15]

} {

[%emt 00:00:58]

} Qxf6 {

[%clk 01:24:22]

} {

[%emt 00:00:59]

} 11. c3 {

[%clk 01:26:20]

} {

[%emt 00:00:24]

} a6 {

[%clk 01:20:44]

} {

[%emt 00:04:08]

} 12. Qa4+ {

[%clk 01:20:04]

} {

[%emt 00:06:46]

} Bd7 {

[%clk 01:14:13]

} {

[%emt 00:07:02]

} 13. Qb3 {

[%clk 01:20:16]

} {

[%emt 00:00:17]

} Rb8 {

[%clk 01:13:06]

} {

[%emt 00:01:38]

} 14. Bxb7 {

[%clk 01:12:22]

} {

[%emt 00:08:23]

} Qd8 {

[%clk 01:11:47]

} {

[%emt 00:01:50]

} 15. Ne5 {

[%clk 01:10:08]

} {

[%emt 00:02:44]

} Qc7 {

[%clk 01:05:54]

} {

[%emt 00:06:24]

} 16. Nxd7 {

[%clk 01:10:03]

} {

[%emt 00:00:35]

} Rxb7 {

[%clk 01:03:14]

} {

[%emt 00:03:09]

} 17. Qc4 {

[%clk 01:08:14]

} {

[%emt 00:02:19]

} Qxd7 {

[%clk 01:02:15]

} {

[%emt 00:01:30]

} 18. dxc5 {

[%clk 01:08:38]

} {

[%emt 00:00:05]

} Qb5 {

[%clk 01:01:48]

} {

[%emt 00:00:57]

} 19. Qxb5+ {

[%clk 01:08:04]

} {

[%emt 00:01:04]

} axb5 {

[%clk 01:00:53]

} {

[%emt 00:01:25]

} 20. b4 {

[%clk 01:08:30]

} {

[%emt 00:00:04]

} Be7 {

[%clk 01:00:51]

} {

[%emt 00:00:33]

} 21. a4 {

[%clk 01:08:42]

} {

[%emt 00:00:18]

} O-O {

[%clk 01:00:09]

} {

[%emt 00:01:11]

} 22. a5 {

[%clk 01:04:47]

} {

[%emt 00:04:25]

} Bf6 {

[%clk 00:59:59]

} {

[%emt 00:00:39]

} 23. Rfc1 {

[%clk 01:03:57]

} {

[%emt 00:01:21]

} Ra8 {

[%clk 00:54:30]

} {

[%emt 00:05:59]

} 24. Kf1 {

[%clk 01:04:10]

} {

[%emt 00:00:16]

} Ra6 {

[%clk 00:54:44]

} {

[%emt 00:00:17]

} 25. Ke2 {

[%clk 01:04:24]

} {

[%emt 00:00:15]

} Rd7 {

[%clk 00:54:50]

} {

[%emt 00:00:24]

} 26. Rab1 {

[%clk 01:04:09]

} {

[%emt 00:00:45]

} Kf8 {

[%clk 00:52:52]

} {

[%emt 00:02:28]

} 27. c4 {

[%clk 01:03:21]

} {

[%emt 00:01:18]

} bxc4 {

[%clk 00:52:54]

} {

[%emt 00:00:29]

} 28. Rxc4 {

[%clk 01:03:48]

} {

[%emt 00:00:03]

} Ke8 {

[%clk 00:49:56]

} {

[%emt 00:03:28]

} 29. c6 {

[%clk 00:49:21]

} {

[%emt 00:14:56]

} Rd4 {

[%clk 00:40:43]

} {

[%emt 00:09:43]

} 30. Rc5 {

[%clk 00:48:03]

} {

[%emt 00:01:48]

} Kd8 {

[%clk 00:40:01]

} {

[%emt 00:01:13]

} 31. c7+ {

[%clk 00:48:06]

} {

[%emt 00:00:27]

} Kc8 {

[%clk 00:40:20]

} {

[%emt 00:00:11]

} 32. b5 {

[%clk 00:48:33]

} {

[%emt 00:00:03]

} Rxa5 {

[%clk 00:39:29]

} {

[%emt 00:01:22]

} 33. b6 {

[%clk 00:49:00]

} {

[%emt 00:00:03]

} Rxc5 {

[%clk 00:38:34]

} {

[%emt 00:01:25]

} 34. b7+ {

[%clk 00:49:23]

} {

[%emt 00:00:06]

} Kxc7 {

[%clk 00:37:58]

} {

[%emt 00:01:07]

} 35. b8=Q+ {

[%clk 00:49:48]

} {

[%emt 00:00:04]

} Kc6 {

[%clk 00:37:40]

} {

[%emt 00:00:49]

} 36. Qb7+ {

[%clk 00:47:54]

} {

[%emt 00:02:23]

} Kd6 {

[%clk 00:37:49]

} {

[%emt 00:00:21]

} 37. Qxf7 {

[%clk 00:45:58]

} {

[%emt 00:02:26]

} Rdc4 {

[%clk 00:33:20]

} {

[%emt 00:04:59]

} 38. g3 {

[%clk 00:44:51]

} {

[%emt 00:01:37]

} e5 {

[%clk 00:30:59]

} {

[%emt 00:02:51]

} 39. Qf8+ {

[%clk 00:42:31]

} {

[%emt 00:02:50]

} Kd5 {

[%clk 00:30:47]

} {

[%emt 00:00:43]

} 40. Qf7+ {

[%clk 00:38:45]

} {

[%emt 00:04:16]

} Kd6 {

[%clk 00:29:31]

} {

[%emt 00:01:46]

} 41. h4 {

[%clk 00:38:25]

} {

[%emt 00:00:50]

} Rc7 {

[%clk 00:28:31]

} {

[%emt 00:01:31]

} 42. Qf8+ {

[%clk 00:36:48]

} {

[%emt 00:02:06]

} Kd5 {

[%clk 00:27:08]

} {

[%emt 00:01:53]

} 43. Rb6 {

[%clk 00:36:29]

} {

[%emt 00:00:48]

} Rc2+ {

[%clk 00:25:45]

} {

[%emt 00:01:54]

} 44. Kf1 {

[%clk 00:35:47]

} {

[%emt 00:01:12]

} R7c6 {

[%clk 00:25:35]

} {

[%emt 00:00:39]

} 45. Qa8 {

[%clk 00:34:23]

} {

[%emt 00:01:54]

} Kd6 {

[%clk 00:23:52]

} {

[%emt 00:02:13]

} 46. Qb8+ {

[%clk 00:33:08]

} {

[%emt 00:01:45]

} Kd7 {

[%clk 00:23:04]

} {

[%emt 00:01:07]

} 47. Rb3 {

[%clk 00:32:52]

} {

[%emt 00:00:56]

} R2c4 {

[%clk 00:23:02]

} {

[%emt 00:00:32]

} 48. Kg2 {

[%clk 00:32:20]

} {

[%emt 00:01:03]

} Ke6 {

[%clk 00:22:59]

} {

[%emt 00:00:34]

} 49. Qe8+ {

[%clk 00:32:08]

} {

[%emt 00:00:42]

} Kd6 {

[%clk 00:23:12]

} {

[%emt 00:00:17]

} 50. Rf3 {

[%clk 00:32:11]

} {

[%emt 00:00:27]

} Kd5 {

[%clk 00:22:18]

} {

[%emt 00:01:24]

} 51. Kh3 {

[%clk 00:25:45]

} {

[%emt 00:06:55]

} Re6 {

[%clk 00:21:28]

} {

[%emt 00:01:20]

} 52. Qf7 {

[%clk 00:25:45]

} {

[%emt 00:00:30]

} Kd6 {

[%clk 00:21:22]

} {

[%emt 00:00:36]

} 53. Ra3 {

[%clk 00:24:56]

} {

[%emt 00:01:19]

} Rc6 {

[%clk 00:20:06]

} {

[%emt 00:01:46]

} 54. f3 {

[%clk 00:20:34]

} {

[%emt 00:04:52]

} Re7 {

[%clk 00:19:16]

} {

[%emt 00:01:20]

} 55. Rd3+ {

[%clk 00:20:53]

} {

[%emt 00:00:11]

} Kc7 {

[%clk 00:19:07]

} {

[%emt 00:00:39]

} 56. Qd5 {

[%clk 00:21:18]

} {

[%emt 00:00:05]

} Rc1 {

[%clk 00:17:22]

} {

[%emt 00:02:16]

} 57. Qd6+ {

[%clk 00:20:47]

} {

[%emt 00:01:00]

} Kc8 {

[%clk 00:17:19]

} {

[%emt 00:00:33]

} 58. Rb3 {

[%clk 00:20:18]

} {

[%emt 00:01:00]

} Rcc7 {

[%clk 00:17:10]

} {

[%emt 00:00:39]

} 59. g4 {

[%clk 00:20:10]

} {

[%emt 00:00:37]

} Red7 {

[%clk 00:15:13]

} {

[%emt 00:02:27]

} 60. Qe6 {

[%clk 00:19:51]

} {

[%emt 00:00:49]

} Kd8 {

[%clk 00:15:00]

} {

[%emt 00:00:43]

} 61. Rb8+ {

[%clk 00:19:32]

} {

[%emt 00:00:49]

} Rc8 {

[%clk 00:14:52]

} {

[%emt 00:00:39]

} 62. Qg8+ {

[%clk 00:19:57]

} {

[%emt 00:00:04]

} 1-0

[Event "Kadrioru MK Open A"]
[Site "Tallinn, Paul Keres Chess House, Estonia"]
[Date "2023.02.11"]
[Round "2.1"]
[White "Shvyrjov, Igor"]
[Black "Garber, Vjatseslav"]
[Result "1/2-1/2"]
[TimeControl "90 minutes with 30 second increment from move 1"]
[WhiteTitle "GM"]
[WhiteElo "2369"]
[BlackElo "2051"]

1. Nf3 {

[%clk 01:28:27]

} {

[%emt 00:02:32]

} d5 {

[%emt 00:05:56]

} 2. d4 {

[%clk 01:25:23]

} {

[%emt 00:00:38]

} g6 {

[%clk 01:26:12]

} {

[%emt 00:02:19]

} 3. c4 {

[%clk 01:25:16]

} {

[%emt 00:00:37]

} c6 {

[%clk 01:25:32]

} {

[%emt 00:01:10]

} 4. Qb3 {

[%clk 01:20:16]

} {

[%emt 00:05:30]

} Bg7 {

[%clk 01:21:54]

} {

[%emt 00:04:07]

} 5. Nc3 {

[%clk 01:19:24]

} {

[%emt 00:01:23]

} dxc4 {

[%clk 01:17:07]

} {

[%emt 00:05:17]

} 6. Qxc4 {

[%clk 01:19:39]

} {

[%emt 00:00:15]

} Be6 {

[%clk 01:16:49]

} {

[%emt 00:00:48]

} 7. Qa4 {

[%clk 01:18:32]

} {

[%emt 00:01:36]

} b5 {

[%clk 01:14:30]

} {

[%emt 00:02:49]

} 8. Qd1 {

[%clk 01:14:39]

} {

[%emt 00:04:23]

} Nf6 {

[%clk 01:13:17]

} {

[%emt 00:01:44]

} 9. g3 {

[%clk 01:05:28]

} {

[%emt 00:09:41]

} Qa5 {

[%clk 01:09:31]

} {

[%emt 00:04:16]

} 10. Bg2 {

[%clk 00:58:30]

} {

[%emt 00:07:27]

} Ne4 {

[%clk 01:04:22]

} {

[%emt 00:05:40]

} 11. Bd2 {

[%clk 00:58:18]

} {

[%emt 00:00:43]

} Nxd2 {

[%clk 01:00:32]

} {

[%emt 00:04:20]

} 12. Qxd2 {

[%clk 00:58:27]

} {

[%emt 00:00:20]

} b4 {

[%clk 00:54:00]

} {

[%emt 00:07:03]

} 13. Ne4 {

[%clk 00:57:56]

} {

[%emt 00:01:00]

} Bd5 {

[%clk 00:54:02]

} {

[%emt 00:00:29]

} 14. Nc5 {

[%clk 00:55:56]

} {

[%emt 00:02:30]

} Na6 {

[%clk 00:53:21]

} {

[%emt 00:01:11]

} 15. Nd3 {

[%clk 00:40:49]

} {

[%emt 00:15:37]

} Qb6 {

[%clk 00:50:45]

} {

[%emt 00:03:07]

} 16. e3 {

[%clk 00:32:04]

} {

[%emt 00:09:15]

} O-O {

[%clk 00:45:36]

} {

[%emt 00:05:38]

} 17. O-O {

[%clk 00:30:51]

} {

[%emt 00:01:44]

} Rac8 {

[%clk 00:40:22]

} {

[%emt 00:05:44]

} 18. Nfe5 {

[%clk 00:18:47]

} {

[%emt 00:12:34]

} Bxg2 {

[%clk 00:37:28]

} {

[%emt 00:03:24]

} 19. Kxg2 {

[%clk 00:19:15]

} {

[%emt 00:00:02]

} c5 {

[%clk 00:34:57]

} {

[%emt 00:03:01]

} 20. dxc5 {

[%clk 00:14:07]

} {

[%emt 00:05:38]

} Nxc5 {

[%clk 00:34:07]

} {

[%emt 00:01:20]

} 21. Nxc5 {

[%clk 00:08:07]

} {

[%emt 00:06:30]

} Rxc5 {

[%clk 00:32:37]

} {

[%emt 00:02:00]

} 22. Nf3 {

[%clk 00:05:50]

} {

[%emt 00:02:48]

} Rd8 {

[%clk 00:31:21]

} {

[%emt 00:01:46]

} 23. Qe2 {

[%clk 00:06:17]

} {

[%emt 00:00:03]

} Qc6 {

[%clk 00:31:17]

} {

[%emt 00:00:34]

} 24. Rad1 {

[%clk 00:06:33]

} {

[%emt 00:00:14]

} Rc8 {

[%clk 00:29:57]

} {

[%emt 00:01:50]

} 25. Rd2 {

[%clk 00:06:27]

} {

[%emt 00:00:36]

} Qe6 {

[%clk 00:26:37]

} {

[%emt 00:03:50]

} 26. b3 {

[%clk 00:06:35]

} {

[%emt 00:00:22]

} Bc3 {

[%clk 00:24:16]

} {

[%emt 00:02:51]

} 27. Rd3 {

[%clk 00:03:11]

} {

[%emt 00:03:54]

} Ra5 {

[%clk 00:24:22]

} {

[%emt 00:00:24]

} 28. e4 {

[%clk 00:01:34]

} {

[%emt 00:02:06]

} Qa6 {

[%clk 00:24:05]

} {

[%emt 00:00:48]

} 29. e5 {

[%clk 00:01:32]

} {

[%emt 00:00:33]

} Rxa2 {

[%clk 00:22:18]

} {

[%emt 00:02:16]

} 30. Qe3 {

[%clk 00:02:02]

} Kg7 {

[%clk 00:20:05]

} {

[%emt 00:02:43]

} 31. Rd7 {

[%clk 00:01:58]

} {

[%emt 00:00:33]

} Qe6 {

[%clk 00:19:30]

} {

[%emt 00:01:05]

} 32. Rxa7 {

[%clk 00:02:16]

} {

[%emt 00:00:13]

} Rxa7 {

[%clk 00:18:57]

} {

[%emt 00:01:03]

} 33. Qxa7 {

[%clk 00:02:45]

} {

[%emt 00:00:01]

} Qxb3 {

[%clk 00:19:01]

} {

[%emt 00:00:26]

} 34. Qxe7 {

[%clk 00:03:11]

} {

[%emt 00:00:05]

} Qe6 {

[%clk 00:18:56]

} {

[%emt 00:00:35]

} 35. Qb7 {

[%clk 00:03:39]

} {

[%emt 00:00:02]

} Qc6 {

[%clk 00:18:32]

} {

[%emt 00:00:53]

} 36. Qxc6 {

[%clk 00:03:18]

} {

[%emt 00:00:53]

} Rxc6 {

[%clk 00:18:49]

} {

[%emt 00:00:13]

} 37. Rb1 {

[%clk 00:03:46]

} Ra6 {

[%clk 00:16:32]

} {

[%emt 00:02:48]

} 38. Ne1 {

[%clk 00:03:13]

} {

[%emt 00:01:03]

} Ra1 {

[%clk 00:16:35]

} {

[%emt 00:00:27]

} 39. Rxa1 {

[%clk 00:02:39]

} {

[%emt 00:01:04]

} Bxa1 {

[%clk 00:16:58]

} {

[%emt 00:00:06]

} 40. Nd3 {

[%clk 00:00:41]

} {

[%emt 00:02:28]

} b3 {

[%clk 00:16:54]

} {

[%emt 00:00:35]

} 41. f4 {

[%clk 00:01:04]

} {

[%emt 00:00:07]

} b2 {

[%clk 00:17:02]

} {

[%emt 00:00:22]

} 42. Nxb2 {

[%clk 00:01:32]

} {

[%emt 00:00:02]

} Bxb2 {

[%clk 00:17:08]

} {

[%emt 00:00:24]

} 43. Kf3 {

[%clk 00:02:01]

} {

[%emt 00:00:01]

} Kf8 {

[%clk 00:15:33]

} {

[%emt 00:02:05]

} 44. h4 {

[%clk 00:02:12]

} {

[%emt 00:00:19]

} Ke7 {

[%clk 00:15:50]

} {

[%emt 00:00:13]

} 45. h5 {

[%clk 00:02:27]

} {

[%emt 00:00:15]

} h6 {

[%clk 00:08:54]

} {

[%emt 00:07:25]

} 46. hxg6 {

[%clk 00:02:01]

} {

[%emt 00:00:57]

} fxg6 {

[%clk 00:09:11]

} {

[%emt 00:00:13]

} 47. g4 {

[%clk 00:02:16]

} {

[%emt 00:00:15]

} g5 {

[%clk 00:09:09]

} {

[%emt 00:00:32]

} 48. Ke4 {

[%clk 00:02:39]

} {

[%emt 00:00:06]

} Bc1 {

[%clk 00:08:41]

} {

[%emt 00:00:58]

} 49. f5 {

[%clk 00:02:55]

} {

[%emt 00:00:14]

} Bb2 {

[%clk 00:08:40]

} {

[%emt 00:00:31]

} 50. Kd5 {

[%clk 00:02:35]

} {

[%emt 00:00:50]

} Bc3 {

[%clk 00:07:41]

} {

[%emt 00:01:29]

} 51. Ke4 {

[%clk 00:02:44]

} {

[%emt 00:00:21]

} Bb2 {

[%clk 00:05:28]

} {

[%emt 00:02:43]

} 52. Kd5 {

[%clk 00:03:03]

} {

[%emt 00:00:11]

} Kd7 {

[%clk 00:04:17]

} {

[%emt 00:01:41]

} 53. Ke4 {

[%clk 00:03:17]

} {

[%emt 00:00:16]

} Ke7 {

[%clk 00:03:45]

} {

[%emt 00:01:03]

} 1/2-1/2

[Event "Kadrioru MK Open A"]
[Site "Tallinn, Paul Keres Chess House, Estonia"]
[Date "2023.02.11"]
[Round "2.2"]
[White "Pedoson, Georg Aleksander"]
[Black "Mogilny, Evgeny"]
[Result "1-0"]
[TimeControl "90 minutes with 30 second increment from move 1"]
[WhiteElo "2253"]
[BlackElo "1756"]

1. d4 {

[%emt 00:02:27]

} e6 {

[%clk 01:28:32]

} {

[%emt 00:00:05]

} 2. c4 {

[%clk 01:31:19]

} {

[%emt 00:00:08]

} d5 {

[%clk 01:28:57]

} {

[%emt 00:00:05]

} 3. Nc3 {

[%clk 01:31:44]

} {

[%emt 00:00:05]

} Nf6 {

[%clk 01:29:15]

} {

[%emt 00:00:12]

} 4. cxd5 {

[%clk 01:32:05]

} {

[%emt 00:00:09]

} exd5 {

[%clk 01:29:35]

} {

[%emt 00:00:09]

} 5. Bg5 {

[%clk 01:32:31]

} {

[%emt 00:00:04]

} Be7 {

[%clk 01:29:52]

} {

[%emt 00:00:13]

} 6. e3 {

[%clk 01:32:54]

} {

[%emt 00:00:07]

} O-O {

[%clk 01:30:11]

} {

[%emt 00:00:11]

} 7. Bd3 {

[%clk 01:33:21]

} {

[%emt 00:00:04]

} c6 {

[%clk 01:30:32]

} {

[%emt 00:00:10]

} 8. Nge2 {

[%clk 01:32:13]

} {

[%emt 00:01:37]

} h6 {

[%clk 01:30:52]

} {

[%emt 00:00:10]

} 9. Bh4 {

[%clk 01:32:37]

} {

[%emt 00:00:05]

} Ne8 {

[%clk 01:31:00]

} {

[%emt 00:00:22]

} 10. Bg3 {

[%clk 01:32:38]

} {

[%emt 00:00:29]

} f5 {

[%clk 01:31:16]

} {

[%emt 00:00:14]

} 11. Qc2 {

[%clk 01:31:29]

} {

[%emt 00:01:39]

} Nd6 {

[%clk 01:31:28]

} {

[%emt 00:00:18]

} 12. Be5 {

[%clk 01:29:19]

} {

[%emt 00:02:40]

} Ne4 {

[%clk 01:31:44]

} {

[%emt 00:00:14]

} 13. f3 {

[%clk 01:27:31]

} {

[%emt 00:02:18]

} Nxc3 {

[%clk 01:31:59]

} {

[%emt 00:00:14]

} 14. Nxc3 {

[%clk 01:27:57]

} {

[%emt 00:00:04]

} Be6 {

[%clk 01:32:20]

} {

[%emt 00:00:09]

} 15. O-O {

[%clk 01:27:35]

} {

[%emt 00:00:52]

} Nd7 {

[%clk 01:32:45]

} {

[%emt 00:00:06]

} 16. f4 {

[%clk 01:27:49]

} {

[%emt 00:00:16]

} Rc8 {

[%clk 01:32:45]

} {

[%emt 00:00:30]

} 17. Rad1 {

[%clk 01:17:47]

} {

[%emt 00:10:32]

} Nxe5 {

[%clk 01:33:00]

} {

[%emt 00:00:14]

} 18. fxe5 {

[%clk 01:17:57]

} {

[%emt 00:00:21]

} Bg5 {

[%clk 01:33:22]

} {

[%emt 00:00:08]

} 19. Qe2 {

[%clk 01:13:29]

} {

[%emt 00:04:58]

} Rc7 {

[%clk 01:32:48]

} {

[%emt 00:01:04]

} 20. g3 {

[%clk 01:13:14]

} {

[%emt 00:00:46]

} Rcf7 {

[%clk 01:33:07]

} {

[%emt 00:00:10]

} 21. Bb1 {

[%clk 01:11:38]

} {

[%emt 00:02:06]

} g6 {

[%clk 01:33:19]

} {

[%emt 00:00:18]

} 22. Qf3 {

[%clk 01:05:22]

} {

[%emt 00:06:47]

} h5 {

[%clk 01:33:35]

} {

[%emt 00:00:13]

} 23. h4 {

[%clk 01:05:44]

} {

[%emt 00:00:08]

} Be7 {

[%clk 01:32:39]

} {

[%emt 00:01:26]

} 24. Ne2 {

[%clk 01:06:06]

} {

[%emt 00:00:09]

} Kg7 {

[%clk 01:32:51]

} {

[%emt 00:00:18]

} 25. Nf4 {

[%clk 01:06:26]

} {

[%emt 00:00:10]

} Qd7 {

[%clk 01:32:45]

} {

[%emt 00:00:36]

} 26. Kg2 {

[%clk 01:06:43]

} {

[%emt 00:00:13]

} Rh8 {

[%clk 01:32:15]

} {

[%emt 00:00:59]

} 27. Rh1 {

[%clk 01:06:03]

} {

[%emt 00:01:10]

} Rff8 {

[%clk 01:32:38]

} {

[%emt 00:00:07]

} 28. Rdf1 {

[%clk 00:56:24]

} {

[%emt 00:10:08]

} Kf7 {

[%clk 01:32:54]

} {

[%emt 00:00:14]

} 29. Qd1 {

[%clk 00:54:27]

} {

[%emt 00:02:27]

} Rfg8 {

[%clk 01:33:12]

} {

[%emt 00:00:12]

} 30. Qb3 {

[%clk 00:54:38]

} {

[%emt 00:00:19]

} Ke8 {

[%clk 01:33:10]

} {

[%emt 00:00:31]

} 31. Nxe6 {

[%clk 00:54:20]

} {

[%emt 00:00:48]

} Qxe6 {

[%clk 01:33:29]

} {

[%emt 00:00:01]

} 32. Qxb7 {

[%clk 00:54:44]

} {

[%emt 00:00:16]

} Qd7 {

[%clk 01:33:41]

} {

[%emt 00:00:17]

} 33. Qa6 {

[%clk 00:54:53]

} {

[%emt 00:00:22]

} Kf7 {

[%clk 01:33:57]

} {

[%emt 00:00:14]

} 34. Rc1 {

[%clk 00:54:58]

} {

[%emt 00:00:24]

} Rc8 {

[%clk 01:34:17]

} {

[%emt 00:00:10]

} 35. Rhf1 {

[%clk 00:54:07]

} {

[%emt 00:01:21]

} Ke6 {

[%clk 01:34:15]

} {

[%emt 00:00:32]

} 36. Rxf5 {

[%clk 00:52:38]

} {

[%emt 00:01:59]

} gxf5 {

[%clk 01:34:29]

} {

[%emt 00:00:16]

} 37. Bxf5+ {

[%clk 00:53:06]

} {

[%emt 00:00:03]

} Kxf5 {

[%clk 01:31:53]

} {

[%emt 00:03:05]

} 38. Qd3+ {

[%clk 00:53:32]

} {

[%emt 00:00:05]

} Ke6 {

[%clk 01:31:46]

} {

[%emt 00:00:37]

} 39. Qg6+ {

[%clk 00:54:00]

} {

[%emt 00:00:02]

} Bf6 {

[%clk 01:32:06]

} {

[%emt 00:00:10]

} 40. Qxf6# {

[%clk 00:54:26]

} {

[%emt 00:00:03]

} 1-0